bitfinex-derivatives/quotes_SOLF0:USTF0_20241120
["timestamp","ask_amount","ask_price","bid_price","bid_amount"]
[1732112888420,2.0657,241.8,241.75,2.066]
[1732112888619,2.9,241.86,241.75,2.066]
[1732112888817,2.9,241.86,241.73,9.84624491]
[1732112890216,2.9,241.86,241.67,9.84624491]
[1732112890217,9.84624491,241.84,241.67,9.84624491]
[1732112890624,2.9,241.86,241.67,9.84624491]
[1732112890625,9.84624491,241.81,241.67,9.84624491]
[1732112891124,2.0663,241.72,241.67,2.0667]
[1732112891626,2.0663,241.72,241.66,3.3827]
[1732112892423,2.0662,241.73,241.68,2.0666]
[1732112892619,2.9,241.75,241.66,3.3827]
[1732112893925,2.0663,241.73,241.66,3.3827]
[1732112894121,2.9,241.75,241.66,3.3827]
[1732112895023,2.0663,241.73,241.66,5.4495]
[1732112895221,2.9,241.75,241.66,5.4495]
[1732112896024,2.9,241.75,241.66,3.3827]
[1732112896322,12.74624491,241.75,241.63,0.88498]
[1732112896619,9.84624491,241.72,241.63,0.88498]
[1732112896820,2.067,241.64,241.63,0.88498]
[1732112898822,2.9,241.67,241.63,0.88498]
[1732112899032,2.0667,241.67,241.63,0.88498]
[1732112899325,2.9,241.68,241.63,2.95198]
[1732112899526,2.9,241.68,241.63,0.88498]
[1732112899921,4.9667,241.68,241.63,0.88498]
[1732112900424,2.9,241.68,241.64,2.0669]
[1732112900623,2.0666,241.69,241.64,2.0669]
[1732112900824,2.9,241.73,241.63,2.95198]
[1732112901026,2.9,241.72,241.63,0.88498]
[1732112902719,2.9,241.72,241.63,2.95208]
[1732112903428,2.0665,241.7,241.63,10.73122491]
[1732112903626,2.9,241.72,241.63,10.73122491]
[1732112903826,2.9,241.72,241.63,0.88498]
[1732112904026,2.9,241.72,241.65,2.0669]
[1732112904027,2.0665,241.71,241.65,2.0669]
[1732112904234,2.9,241.72,241.65,2.0669]
[1732112904527,2.9,241.72,241.63,0.88498]
[1732112904718,3.134,241.77,241.63,10.73122491]
[1732112904923,1.5491,241.77,241.66,9.84624491]
[1732112905119,2.0663,241.73,241.68,2.0666]
[1732112905323,4.4491,241.77,241.64,3.1319]
[1732112905526,4.4491,241.77,241.63,0.88498]
[1732112905527,9.84624491,241.75,241.63,0.88498]
[1732112905724,9.84624491,241.72,241.63,0.88498]
[1732112907429,9.84624491,241.75,241.63,0.88498]
[1732112908133,9.84624491,241.72,241.63,0.88498]
[1732112908523,9.84624491,241.75,241.63,0.88498]
[1732112909423,2.0668,241.67,241.63,0.88498]
[1732112909830,2.9,241.68,241.63,0.88498]
[1732112910528,2.0671,241.62,241.57,2.0675]
[1732112910836,2.9,241.68,241.57,2.0675]
[1732112911030,2.0671,241.63,241.57,2.0675]
[1732112912433,2.9,241.68,241.53,9.84624491]
[1732112912730,9.84624491,241.66,241.51,2.3066753]
[1732112912931,2.0678,241.55,241.49,5.4534753]
[1732112913133,2.9,241.58,241.49,7.5216753]
[1732112913326,2.9,241.58,241.49,5.215]
[1732112913632,2.9,241.58,241.53,0.81764]
[1732112914328,2.0678,241.54,241.53,0.81764]
[1732112916736,2.0677,241.56,241.53,0.81764]
[1732112916934,2.9,241.58,241.53,0.81764]
[1732112917838,2.9,241.58,241.54,2.0677]
[1732112918033,2.9,241.58,241.53,10.66388491]
[1732112918243,2.9,241.58,241.56,9.84624491]
[1732112918835,2.9,241.58,241.56,11.91384491]
[1732112919244,2.9,241.58,241.56,9.84624491]
[1732112920840,2.9,241.58,241.53,0.81764]
[1732112921345,2.9,241.58,241.54,2.0678]
[1732112921539,2.9,241.58,241.53,0.81764]
[1732112921734,2.0678,241.55,241.53,0.81764]
[1732112922145,2.9,241.58,241.53,0.81764]
[1732112922838,4.9676,241.58,241.53,0.81764]
[1732112923344,2.0676,241.58,241.53,0.81764]
[1732112923639,2.9,241.62,241.55,9.84624491]
[1732112924144,2.9,241.62,241.58,2.0675]
[1732112924536,4.9669,241.66,241.61,11.91344491]
[1732112924842,2.9,241.66,241.61,9.84624491]
[1732112925038,4.9668,241.66,241.61,11.91344491]
[1732112925238,2.9,241.66,241.58,9.84624491]
[1732112925838,2.9,241.66,241.6,2.0673]
[1732112926441,2.0669,241.65,241.58,9.84624491]
[1732112926648,2.9,241.69,241.61,2.0672]
[1732112927449,2.0669,241.65,241.58,9.84624491]
[1732112928251,2.9,241.69,241.58,9.84624491]
[1732112928446,2.9,241.69,241.55,9.84624491]
[1732112928854,2.0672,241.62,241.56,2.0677]
[1732112929046,2.9,241.69,241.55,9.84624491]
[1732112929555,2.0674,241.6,241.55,2.0677]
[1732112929752,9.84624491,241.67,241.53,0.81764]
[1732112929753,2.9,241.62,241.53,0.81764]
[1732112929960,2.9,241.62,241.55,9.84624491]
[1732112930256,2.9,241.62,241.57,2.0676]
[1732112930557,2.9,241.62,241.55,9.84624491]
[1732112930753,2.9,241.62,241.57,2.0676]
[1732112930951,2.9,241.62,241.55,9.84624491]
[1732112931147,9.84624491,241.73,241.55,9.84624491]
[1732112931347,3.53944047,241.72,241.55,9.84624491]
[1732112931549,9.84624491,241.7,241.55,9.84624491]
[1732112931859,2.0668,241.66,241.56,2.0676]
[1732112932051,2.9,241.65,241.55,9.84624491]
[1732112932458,2.0671,241.63,241.57,2.0675]
[1732112932651,2.9,241.65,241.57,2.0675]
[1732112932952,4.967,241.65,241.59,2.0674]
[1732112933156,2.9,241.65,241.58,9.84624491]
[1732112933450,9.84624491,241.74,241.58,9.84624491]
[1732112933654,1.5866,241.77,241.61,9.84624491]
[1732112933655,2.9,241.73,241.61,9.84624491]
[1732112934052,2.0665,241.71,241.65,2.0669]
[1732112934248,2.0665,241.71,241.61,9.84624491]
[1732112934249,2.9,241.73,241.61,9.84624491]
[1732112935257,2.88,241.74,241.61,9.84624491]
[1732112935857,2.88,241.74,241.65,2.0668]
[1732112935858,2.0665,241.7,241.65,2.0668]
[1732112936953,2.0663,241.72,241.66,2.0668]
[1732112937357,2.88,241.76,241.64,9.84624491]
[1732112937756,2.0663,241.72,241.67,2.0666]
[1732112937951,2.88,241.76,241.64,9.84624491]
[1732112938458,2.0664,241.72,241.67,2.0667]
[1732112938854,1.5866,241.77,241.64,9.84624491]
[1732112939059,1.5866,241.77,241.68,2.0665]
[1732112939060,2.0662,241.73,241.68,2.0665]
[1732112939257,2.88,241.76,241.67,9.84624491]
[1732112940264,2.0661,241.75,241.7,2.0664]
[1732112940560,2.88,241.76,241.67,9.84624491]
[1732112940961,2.88,241.76,241.64,9.84624491]
[1732112941460,2.0664,241.71,241.66,2.0668]
[1732112941656,2.0664,241.71,241.64,9.84624491]
[1732112941657,2.88,241.76,241.64,9.84624491]
[1732112941854,9.84624491,241.74,241.62,1.6472]
[1732112942053,9.84624491,241.74,241.58,9.84624491]
[1732112942460,2.0668,241.67,241.62,2.0671]
[1732112942763,2.0668,241.67,241.58,9.84624491]
[1732112943058,2.88,241.69,241.58,9.84624491]
[1732112943854,2.0668,241.66,241.61,2.0672]
[1732112944058,2.88,241.69,241.61,2.0672]
[1732112944259,2.88,241.69,241.58,9.84624491]
[1732112944260,2.067,241.64,241.6,2.0673]
[1732112944858,2.067,241.64,241.58,9.84624491]
[1732112945163,2.88,241.69,241.58,9.84624491]
[1732112945661,2.067,241.65,241.58,9.84624491]
[1732112946258,2.067,241.65,241.6,2.0673]
[1732112946458,2.88,241.69,241.61,9.84624491]
[1732112946859,2.0669,241.66,241.62,2.0671]
[1732112947059,2.88,241.69,241.58,9.84624491]
[1732112947564,2.88,241.69,241.59,9.84624491]
[1732112948460,2.88,241.69,241.56,9.84624491]
[1732112948763,2.067,241.64,241.58,2.0675]
[1732112949163,2.88,241.69,241.58,2.0675]
[1732112949956,2.0669,241.65,241.59,9.84624491]
[1732112950567,2.0668,241.66,241.59,9.84624491]
[1732112950964,2.88,241.69,241.59,9.84624491]
[1732112951167,2.0669,241.65,241.59,9.84624491]
[1732112951565,2.88,241.69,241.59,9.84624491]
[1732112951763,1.61,241.75,241.62,9.84624491]
[1732112951970,2.88,241.71,241.62,9.84624491]
[1732112952268,4.9464,241.71,241.66,2.0668]
[1732112953065,2.88,241.71,241.62,9.84624491]
[1732112953769,2.88,241.71,241.65,9.84624491]
[1732112953970,2.0664,241.72,241.67,2.0667]
[1732112954163,2.88,241.74,241.67,2.0667]
[1732112955162,2.88,241.74,241.57,2.31352295]
[1732112955472,2.88,241.74,241.62,9.84624491]
[1732112955770,12.72624491,241.74,241.59,9.84624491]
[1732112957166,2.0667,241.68,241.63,2.0671]
[1732112957469,2.88,241.74,241.62,9.84624491]
[1732112957669,2.0665,241.7,241.62,9.84624491]
[1732112957870,2.88,241.74,241.62,9.84624491]
[1732112958170,2.0666,241.69,241.64,2.067]
[1732112958369,2.88,241.74,241.64,2.067]
[1732112958975,2.88,241.74,241.59,9.84624491]
[1732112959671,2.0668,241.67,241.61,2.0671]
[1732112959973,2.0668,241.67,241.59,9.84624491]
[1732112960175,2.0668,241.67,241.61,2.0672]
[1732112960370,2.88,241.74,241.56,0.8109]
[1732112960682,9.84624491,241.71,241.6,2.0672]
[1732112960879,2.067,241.65,241.56,10.65714491]
[1732112961281,2.067,241.65,241.61,2.0672]
[1732112962372,12.72624491,241.74,241.61,2.0672]
[1732112963073,2.0666,241.69,241.65,2.0669]
[1732112963274,2.88,241.73,241.62,9.84624491]
[1732112963775,2.88,241.73,241.64,2.067]
[1732112963776,2.0667,241.67,241.64,2.067]
[1732112963974,2.88,241.73,241.59,9.84624491]
[1732112964375,2.067,241.64,241.6,2.0673]
[1732112964576,9.84624491,241.71,241.56,10.65714491]
[1732112965070,2.067,241.64,241.59,2.0674]
[1732112965274,9.84624491,241.71,241.56,10.65714491]
[1732112965681,9.84624491,241.71,241.59,2.0674]
[1732112965977,9.84624491,241.71,241.56,10.65714491]
[1732112966174,2.0671,241.64,241.58,2.0674]
[1732112966876,2.0671,241.64,241.59,2.0673]
[1732112967575,2.0667,241.68,241.59,9.84624491]
[1732112967775,2.88,241.69,241.59,9.84624491]
[1732112968571,2.0668,241.67,241.62,2.0671]
[1732112968776,2.0668,241.67,241.59,9.84624491]
[1732112968971,2.0668,241.66,241.62,2.0671]
[1732112969378,2.88,241.69,241.62,2.0671]
[1732112969576,2.88,241.69,241.59,2.0674]
[1732112970178,2.0671,241.62,241.58,2.0675]
[1732112970379,9.84624491,241.68,241.56,0.8109]
[1732112970879,1.6324,241.67,241.56,0.8109]
[1732112971176,1.7021,241.72,241.61,9.84624491]
[1732112971383,1.7021,241.72,241.6,9.84624491]
[1732112971581,1.7021,241.72,241.56,0.8109]
[1732112971775,1.7021,241.72,241.6,2.0673]
[1732112972171,1.7021,241.72,241.56,0.8109]
[1732112972377,1.7021,241.72,241.59,9.84624491]
[1732112972578,1.7021,241.72,241.56,10.65714491]
[1732112972579,11.54834491,241.72,241.56,10.65714491]
[1732112973180,9.84624491,241.69,241.56,0.8109]
[1732112973376,1.6171,241.68,241.56,0.8109]
[1732112973575,1.6171,241.68,241.57,2.0675]
[1732112973576,2.0671,241.63,241.57,2.0675]
[1732112973778,2.88,241.67,241.56,0.8109]
[1732112974377,2.88,241.67,241.57,9.84624491]
[1732112975478,2.0671,241.63,241.56,0.8109]
[1732112975677,2.88,241.67,241.56,0.8109]
[1732112976679,2.88,241.67,241.6,2.0673]
[1732112977477,2.067,241.65,241.59,2.0674]
[1732112977679,2.88,241.67,241.59,2.0674]
[1732112978383,2.067,241.64,241.59,2.0674]
[1732112979275,2.067,241.64,241.6,2.0673]
[1732112979480,2.067,241.64,241.57,9.84624491]
[1732112980177,2.88,241.67,241.59,2.0674]
[1732112980586,2.88,241.67,241.56,0.8109]
[1732112980787,2.88,241.67,241.56,2.8785]
[1732112981084,2.88,241.67,241.56,0.8109]
[1732112981085,9.84624491,241.66,241.56,0.8109]
[1732112981578,9.84624491,241.63,241.56,0.8109]
[1732112981983,2.0675,241.58,241.56,0.8109]
[1732112982186,2.88,241.6,241.56,0.8109]
[1732112982482,2.0676,241.57,241.56,0.8109]
[1732112983980,9.84624491,241.57,241.42,2.33451672]
[1732112984177,9.84624491,241.57,241.41,14.71214491]
[1732112984381,2.0684,241.47,241.42,2.0688]
[1732112984882,2.88,241.5,241.43,2.0688]
[1732112985083,2.88,241.5,241.41,14.71214491]
[1732112985582,2.0684,241.47,241.42,2.0688]
[1732112985881,2.88,241.5,241.41,13.14364491]
[1732112987085,2.0685,241.47,241.41,15.21254491]
[1732112987286,2.88,241.5,241.46,0.73002]
[1732112988084,2.0684,241.47,241.46,0.73002]
[1732112988486,9.84624491,241.55,241.46,0.73002]
[1732112988785,2.88,241.54,241.46,0.73002]
[1732112989485,2.88,241.53,241.46,0.73002]
[1732112989887,2.88,241.53,241.48,2.0683]
[1732112990286,2.068,241.52,241.47,9.84624491]
[1732112990487,2.88,241.53,241.47,9.84624491]
[1732112990688,2.88,241.53,241.46,0.73002]
[1732112990990,2.0681,241.51,241.46,0.73002]
[1732112991291,2.88,241.53,241.46,0.73002]
[1732112992685,2.0683,241.5,241.46,0.73002]
[1732112993089,2.88,241.53,241.46,0.73002]
[1732112993489,2.0683,241.49,241.46,0.73002]
[1732112994097,2.0684,241.47,241.46,0.73002]
[1732112994888,2.88,241.53,241.46,0.73002]
[1732112995090,9.84624491,241.52,241.46,0.73002]
[1732112995694,2.88,241.53,241.46,0.73002]
[1732112996396,2.0684,241.47,241.46,0.73002]
[1732112996895,2.88,241.53,241.46,0.73002]
[1732112998594,1.6247,241.6,241.46,0.73002]
[1732112998795,2.88,241.59,241.46,0.73002]
[1732112999093,1.6247,241.6,241.48,9.84624491]
[1732112999292,2.88,241.61,241.47,3.3774]
[1732112999495,2.88,241.61,241.54,9.84624491]
[1732112999797,2.88,241.61,241.55,2.0677]
[1732113000296,2.88,241.61,241.51,9.84624491]
[1732113000493,50.0,241.7,241.51,9.84624491]
[1732113000792,50.0,241.7,241.61,9.84624491]
[1732113000996,50.0,241.7,241.56,2.88]
[1732113001194,50.0,241.7,241.6,9.84624491]
[1732113001390,50.0,241.7,241.62,2.0671]
[1732113001589,50.0,241.7,241.6,9.84624491]
[1732113002191,2.0666,241.69,241.6,9.84624491]
[1732113002391,50.0,241.7,241.6,9.84624491]
[1732113003200,50.0,241.7,241.68,11.91284491]
[1732113003392,26.23755882,241.83,241.69,2.09345007]
[1732113003597,4.789,241.86,241.72,9.84624491]
[1732113003796,0.63908443,241.85,241.75,9.84624491]
[1732113003999,4.789,241.86,241.75,9.84624491]
[1732113004200,3.2287,241.86,241.77,2.0658]
[1732113004400,2.0651,241.87,241.75,9.84624491]
[1732113004599,2.88,241.89,241.75,9.84624491]
[1732113004804,4.9449,241.89,241.75,9.84624491]
[1732113004998,2.88,241.89,241.75,9.84624491]
[1732113005504,2.88,241.89,241.71,2.09117548]
[1732113005505,2.0653,241.84,241.71,15.75357102]
[1732113005705,2.88,241.89,241.71,15.75357102]
[1732113006210,2.88,241.89,241.71,17.82192099]
[1732113006699,1.632,241.9,241.75,15.75357102]
[1732113007408,2.065,241.88,241.81,2.0655]
[1732113007607,1.6312,241.91,241.76,2.02908666]
[1732113007808,1.6312,241.91,241.75,18.63357102]
[1732113008208,1.6312,241.91,241.73,2.09499069]
[1732113008505,1.6312,241.91,241.71,15.75357102]
[1732113008809,1.6312,241.91,241.72,3.3428]
[1732113009310,0.63895247,241.9,241.76,2.0659]
[1732113009611,3.2833,241.91,241.72,3.3428]
[1732113009907,2.0652,241.86,241.78,2.0657]
[1732113010510,2.0648,241.9,241.81,2.0655]
[1732113010708,2.88,241.9,241.75,15.75357102]
[1732113011006,2.88,241.9,241.72,3.3428]
[1732113011904,15.75357102,241.88,241.72,3.3428]
[1732113012106,15.75357102,241.88,241.72,1.6984]
[1732113012307,3.51903898,241.87,241.66,15.75357102]
[1732113012605,15.75357102,241.84,241.62,15.75357102]
[1732113012812,15.75357102,241.8,241.62,15.75357102]
[1732113013001,1.5666,241.79,241.62,15.75357102]
[1732113013201,2.88,241.78,241.66,15.75357102]
[1732113013406,2.0661,241.75,241.67,2.0667]
[1732113013607,2.88,241.78,241.58,5.0204]
[1732113014311,15.75357102,241.76,241.58,5.0204]
[1732113014504,15.75357102,241.76,241.58,3.3371]
[1732113014805,15.75357102,241.72,241.52,17.30157102]
[1732113015006,15.75357102,241.68,241.52,1.565]
[1732113015204,2.0675,241.59,241.52,1.565]
[1732113015409,3.2772,241.71,241.44,1.548]
[1732113015410,2.88,241.6,241.44,17.30157102]
[1732113015601,2.88,241.59,241.44,15.75357102]
[1732113016006,2.88,241.63,241.52,15.75357102]
[1732113016408,2.88,241.63,241.48,15.75357102]
[1732113017510,2.88,241.63,241.44,15.75357102]
[1732113017705,2.88,241.63,241.5,2.0681]
[1732113018810,2.88,241.63,241.41,1.6594]
[1732113018811,2.0675,241.58,241.46,2.0685]
[1732113019009,2.88,241.63,241.46,2.0685]
[1732113019406,15.75357102,241.6,241.42,2.0688]
[1732113019619,15.75357102,241.56,241.41,1.6594]
[1732113019907,4.5908,241.55,241.39,2.069]
[1732113020107,15.75357102,241.52,241.35,1.565]
[1732113020309,2.0686,241.45,241.36,2.0693]
[1732113020613,2.88,241.44,241.36,15.75357102]
[1732113020813,31.88002236,241.65,241.4,15.75357102]
[1732113020814,2.88,241.54,241.4,15.75357102]
[1732113021015,2.88,241.55,241.47,2.0684]
[1732113021407,2.88,241.55,241.44,15.75357102]
[1732113021408,2.88,241.55,241.48,2.0683]
[1732113021606,2.88,241.55,241.44,15.75357102]
[1732113021807,2.88,241.55,241.35,1.565]
[1732113022116,15.75357102,241.52,241.38,2.0692]
[1732113022414,1.7108,241.51,241.35,1.565]
[1732113022710,1.7108,241.51,241.21,2.08269746]
[1732113022711,15.75357102,241.48,241.26,15.75357102]
[1732113022915,15.75357102,241.48,241.3,17.42077102]
[1732113023211,2.88,241.47,241.3,17.42077102]
[1732113023409,2.0687,241.44,241.3,17.42077102]
[1732113023711,2.88,241.47,241.3,17.42077102]
[1732113024008,15.75357102,241.44,241.26,15.75357102]
[1732113024214,15.75357102,241.44,241.25,1.6403]
[1732113024406,2.0695,241.34,241.25,1.6403]
[1732113024611,2.88,241.33,241.25,1.6403]
[1732113025009,2.88,241.33,241.26,2.0702]
[1732113025213,2.88,241.33,241.25,1.6403]
[1732113026208,2.0692,241.39,241.28,2.07]
[1732113026412,2.88,241.38,241.25,1.6403]
[1732113026712,15.75357102,241.48,241.3,15.75357102]
[1732113026909,4.9671,241.51,241.3,15.75357102]
[1732113026910,2.88,241.47,241.3,15.75357102]
[1732113027418,2.069,241.41,241.35,2.0694]
[1732113027613,4.9671,241.51,241.34,15.75357102]
[1732113027921,2.068,241.53,241.45,2.0685]
[1732113028119,2.88,241.56,241.42,15.75357102]
[1732113028316,2.88,241.55,241.43,1.6114]
[1732113028516,3.3224,241.63,241.5,2.0681]
[1732113028716,3.3224,241.63,241.5,15.75357102]
[1732113029020,2.0666,241.68,241.61,2.0672]
[1732113029221,2.88,241.7,241.59,1.6114]
[1732113029521,2.88,241.7,241.63,2.067]
[1732113029719,2.88,241.7,241.59,1.6114]
[1732113029720,1.6674,241.78,241.62,15.75357102]
[1732113030029,2.0662,241.74,241.65,2.0668]
[1732113030220,2.88,241.76,241.63,1.5838]
[1732113030614,4.946,241.76,241.66,2.0668]
[1732113030918,2.88,241.76,241.63,1.5838]
[1732113031315,2.88,241.76,241.59,1.6114]
[1732113031519,15.75357102,241.75,241.59,1.6114]
[1732113031719,2.0667,241.68,241.59,1.6114]
[1732113032021,15.75357102,241.75,241.54,15.75357102]
[1732113032022,2.88,241.69,241.54,15.75357102]
[1732113032218,2.88,241.68,241.54,15.75357102]
[1732113032412,2.88,241.67,241.52,1.6686]
[1732113032617,2.88,241.66,241.52,1.6686]
[1732113032817,15.75357102,241.63,241.46,17.82207102]
[1732113033018,15.75357102,241.63,241.42,15.75357102]
[1732113033220,3.2536,241.65,241.46,15.75357102]
[1732113033422,3.2536,241.65,241.48,2.0683]
[1732113034316,3.2536,241.65,241.5,15.75357102]
[1732113034522,2.88,241.64,241.5,15.75357102]
[1732113034715,2.88,241.64,241.5,2.0681]
[1732113034916,2.0672,241.62,241.47,3.3328]
[1732113035122,2.88,241.64,241.54,15.75357102]
[1732113035322,2.88,241.64,241.53,2.0679]
[1732113035522,2.88,241.64,241.47,3.3328]
[1732113035917,2.0675,241.58,241.47,3.3328]
[1732113036322,2.88,241.64,241.47,3.3328]
[1732113036525,2.88,241.69,241.54,15.75357102]
[1732113037528,2.88,241.69,241.62,2.0671]
[1732113037820,2.88,241.69,241.58,15.75357102]
[1732113038022,4.9466,241.69,241.61,2.0672]
[1732113038223,4.9466,241.69,241.59,1.6145]
[1732113038918,2.88,241.69,241.59,1.6145]
[1732113039317,2.88,241.74,241.59,1.6145]
[1732113039524,2.88,241.74,241.59,3.2914]
[1732113039922,2.0665,241.7,241.64,2.0669]
[1732113040120,2.0665,241.7,241.59,3.2914]
[1732113040316,2.88,241.74,241.62,15.75357102]
[1732113040725,4.9414,241.79,241.66,15.75357102]
[1732113041031,15.75357102,241.88,241.66,15.75357102]
[1732113041420,2.86,241.83,241.7,15.75357102]
[1732113041925,2.0656,241.81,241.7,15.75357102]
[1732113042319,2.86,241.83,241.7,15.75357102]
[1732113042721,2.86,241.9,241.74,15.75357102]
[1732113042929,2.86,241.9,241.71,3.3324]
[1732113043128,2.0654,241.83,241.76,2.0659]
[1732113043429,4.9811,241.91,241.71,3.3324]
[1732113043627,2.86,241.9,241.77,2.0658]
[1732113043825,2.86,241.9,241.71,3.3324]
[1732113044022,2.86,241.9,241.75,15.75357102]
[1732113044220,2.86,241.9,241.82,2.0654]
[1732113044221,2.0649,241.89,241.82,2.0654]
[1732113044429,2.86,241.9,241.75,15.75357102]
[1732113045023,2.86,241.9,241.81,2.0655]
[1732113045230,2.86,241.9,241.75,15.75357102]
[1732113045832,2.0649,241.89,241.75,15.75357102]
[1732113046228,15.75357102,242.01,241.8,15.75357102]
[1732113046425,2.86,241.97,241.8,15.75357102]
[1732113047328,2.0645,241.93,241.86,2.065]
[1732113047725,2.0646,241.92,241.84,2.0653]
[1732113047929,2.86,241.99,241.84,15.75357102]
[1732113048333,2.0645,241.94,241.87,2.065]
[1732113048628,2.86,241.99,241.8,18.61357102]
[1732113049441,2.86,241.98,241.8,18.61357102]
[1732113049632,2.86,241.98,241.87,2.065]
[1732113049829,15.75357102,242.01,241.8,18.61357102]
[1732113050137,2.86,242.0,241.84,15.75357102]
[1732113050636,2.86,242.0,241.85,3.2463]
[1732113050836,2.0643,241.95,241.85,3.2463]
[1732113051342,2.0644,241.95,241.88,2.0649]
[1732113051637,2.86,242.0,241.85,3.2463]
[1732113052232,2.0642,241.97,241.88,15.75357102]
[1732113052433,2.86,242.0,241.88,15.75357102]
[1732113052635,3.2515,242.02,241.88,15.75357102]
[1732113052834,3.2515,242.02,241.94,2.0644]
[1732113053232,15.75357102,242.01,241.85,1.623]
[1732113054040,2.0647,241.91,241.81,1.5614]
[1732113054338,2.86,241.94,241.8,15.75357102]
[1732113054545,2.86,241.94,241.84,2.0652]
[1732113054546,2.0648,241.9,241.84,2.0652]
[1732113055839,2.0647,241.92,241.85,2.0652]
[1732113056040,2.86,241.94,241.85,2.0652]
[1732113056240,2.86,241.94,241.8,15.75357102]
[1732113057141,2.0648,241.9,241.84,2.0653]
[1732113057534,2.0648,241.89,241.84,2.0653]
[1732113058134,2.0648,241.9,241.84,2.0653]
[1732113058537,12.4,241.87,241.7,0.15022]
[1732113058735,15.75357102,241.76,241.7,0.15022]
[1732113058935,2.86,241.75,241.7,0.15022]
[1732113059542,15.75357102,241.8,241.7,0.15022]
[1732113059841,2.86,241.79,241.7,0.15022]
[1732113060242,2.86,241.78,241.7,0.15022]
[1732113060547,2.066,241.76,241.7,0.15022]
[1732113060745,2.86,241.76,241.7,0.15022]
[1732113060942,3.2711,241.89,241.71,15.75357102]
[1732113061141,2.86,241.88,241.76,2.0659]
[1732113061340,3.2711,241.89,241.71,18.93847102]
[1732113061640,2.86,241.88,241.71,18.93847102]
[1732113062036,2.0652,241.85,241.76,2.0659]
[1732113062237,2.86,241.88,241.71,18.93847102]
[1732113062539,2.0657,241.79,241.71,3.1849]
[1732113062841,2.86,241.78,241.71,1.627]
[1732113063038,2.86,241.77,241.7,0.15022]
[1732113063239,2.86,241.76,241.7,0.15022]
[1732113063443,2.86,241.79,241.7,0.15022]
[1732113063642,2.86,241.79,241.74,2.0661]
[1732113063843,2.86,241.79,241.7,0.15022]
[1732113064544,2.0656,241.81,241.7,0.15022]
[1732113064845,2.86,241.8,241.75,2.066]
[1732113065040,2.86,241.8,241.72,25.61450448]
[1732113065240,2.86,241.82,241.72,25.61450448]
[1732113065437,2.0651,241.86,241.72,25.61450448]
[1732113065636,2.86,241.85,241.72,25.61450448]
[1732113066036,2.065,241.88,241.72,25.61450448]
[1732113066242,2.86,241.87,241.76,25.61450448]
[1732113066545,2.86,241.87,241.77,1.6351]
[1732113066942,2.86,241.87,241.76,2.0659]
[1732113067145,2.0659,241.77,241.7,0.15022]
[1732113067343,2.86,241.77,241.7,0.15022]
[1732113067942,2.0664,241.71,241.7,0.15022]
[1732113068141,25.61450448,241.72,241.57,1.5952]
[1732113068348,3.2998,241.71,241.57,1.5952]
[1732113068539,2.86,241.7,241.57,1.5952]
[1732113069146,2.86,241.7,241.58,2.0674]
[1732113069551,2.86,241.7,241.57,1.5952]
[1732113069746,2.067,241.64,241.57,3.6627]
[1732113069946,2.067,241.64,241.57,1.5952]
[1732113070143,2.86,241.63,241.53,1.6383]
[1732113070344,4.9271,241.63,241.53,1.6383]
[1732113070842,2.86,241.63,241.54,2.0677]
[1732113071043,2.86,241.63,241.46,1.5952]
[1732113071348,2.86,241.63,241.44,1.6864]
[1732113071349,25.61450448,241.6,241.44,1.6864]